Cogmind - Beta 15 @@@ ROGUE MODE // 2025.10.09 @ 16:47:04 Player: Wotf Result: Destroyed by 2P-IS3(R) with Subdweller Machine Gun Performance ------------- Evolutions (0) 0 Regions Visited (3) 600 Robots Destroyed (30) 150 Value Destroyed (612) 612 Prototype IDs (0) 0 Alien Tech Used (0) 0 Bonus (0) 0 TOTAL SCORE: 1362 Bonus ------- None Cogmind --------- Core Integrity 0/250 Matter 121/300 Energy 100/100 System Corruption 0% Temperature Cool (0) Movement Walking (190) Ox1 Location -10/Subcaves Parts ------- > --- POWER (1) -------- (None) > --- PROPULSION (2) --- Aluminum Leg Aluminum Leg > --- UTILITY (2) ------ Large Storage Unit Sensor Array > --- WEAPON (2) ------- Light Cannon Grenade Launcher > --- INVENTORY (15) --- Subdweller Power Source Aluminum Leg Aluminum Leg Heat Sink Medium Storage Unit Large Matter Pod (150) Signal Interpreter Terrain Scanner Terrain Scan Processor Seismic Detector Particle Cannon Shotgun EMP Blaster Grenade Launcher Peak State ------------ > --- POWER ------------ Light Nuclear Core > --- PROPULSION ------- Aluminum Leg Aluminum Leg > --- UTILITY ---------- Large Storage Unit Sensor Array > --- WEAPON ----------- Shotgun Light Cannon > --- INVENTORY -------- Light Ion Engine Aluminum Leg Aluminum Leg Heat Sink Medium Storage Unit Large Matter Pod Structural Scanner Signal Interpreter Terrain Scanner Terrain Scan Processor Seismic Detector Particle Cannon EMP Blaster Grenade Launcher Grenade Launcher [Rating: 11] Favorites ----------- Power Light Ion Engine Engine Light Ion Engine Power Core Light Nuclear Core Propulsion Aluminum Leg Leg Aluminum Leg Wheel Wheel Utility Large Storage Unit Device Sensor Array Storage Large Storage Unit Weapon Light Cannon Energy Gun Medium Laser Energy Cannon Particle Cannon Ballistic Gun Shotgun Ballistic Cannon Light Cannon Launcher Grenade Launcher Build | -11 -10 -10 -10 ------- Run | Yrd Mat Min Sub Slots Evolved . | . . . . Power . | . . . . Propulsion . | . . . . Utility . | . . . . Weapon . | . . . . Parts Attached 24 | 9 13 . 2 Power 4 | 1 2 . 1 Engine 3 | 1 1 . 1 Core 1 | . 1 . . Reactor . | . . . . Propulsion 5 | 3 2 . . Treads . | . . . . Leg 4 | 2 2 . . Wheel 1 | 1 . . . Hover . | . . . . Flight . | . . . . Utility 6 | 2 4 . . Device 3 | 1 2 . . Storage 3 | 1 2 . . Processor . | . . . . Hackware . | . . . . Protection . | . . . . Artifact . | . . . . Weapon 9 | 3 5 . 1 Energy Gun 1 | 1 . . . Energy Cannon 2 | . 2 . . Ballistic Gun 3 | 2 1 . . Ballistic Cannon 1 | . 1 . . Launcher 2 | . 1 . 1 Special Weapon . | . . . . Impact Weapon . | . . . . Slashing Weapon . | . . . . Piercing Weapon . | . . . . Special Melee Weapon . | . . . . Unidentified Prototypes . | . . . . Parts Lost 4 | . 2 . 2 Power 3 | . 1 . 2 Propulsion . | . . . . Utility . | . . . . Weapon 1 | . 1 . . Highest Loss Streak 2 | . 2 . 1 To Critical Strikes . | . . . . Average Backups 12 | 4 11 14 14 Power . | . . 1 1 Propulsion 2 | 3 2 2 2 Utility 5 | . 4 7 7 Weapon 3 | . 3 4 4 Tool/Special . | . . . . Unused Backups 18 | . 9 1 8 Power 1 | . . . 1 Propulsion 7 | . 5 . 2 Utility 7 | . 2 1 4 Weapon 3 | . 2 . 1 Tool/Special . | . . . . Average Slot Usage (%) 99 | . 99 100 99 Engine 7 | . 6 . 10 Core 6 | . 7 14 2 Leg 28 | . 28 28 28 Device 14 | . 14 14 14 Storage 14 | . 14 14 14 Energy Cannon 3 | . 7 . . Ballistic Gun 6 | . 6 14 2 Ballistic Cannon 10 | . 7 14 14 Launcher 7 | . 6 . 11 Peak Build Rating 11 | 7 11 11 11 Average Rating 9 | 5 9 11 8 On Entrance 7 | . 7 11 11 Naked Turns . | . . . . Heaviest Build 32 | 12 32 32 32 Greatest Support 20 | 20 20 20 20 Greatest Overweight (x) 1 | . 1 1 1 Average Overweight (x) . | . . 1 1 Largest Inventory Capacity 15 | 8 15 15 15 Average Capacity 13 | 7 12 15 15 Most Carried 15 | 8 15 15 15 Average Carried 12 | 5 11 14 14 Final Capacity 15 | 8 15 15 15 Final Carried 15 | 8 15 14 14 Class Distribution -------------------- 100% | Mutant Dominant Class ---------------- Mutant | -10/Materials Mutant | -10/Mines Mutant | -10/Subcaves Resources | -11 -10 -10 -10 ----------- Run | Yrd Mat Min Sub Matter Collected 1044 | 273 586 89 96 Remotely . | . . . . Salvage Created 876 | 94 660 74 48 Parts 40 | 3 26 2 9 Haulers Intercepted 2 | . 2 . . Recyclers Shooed 2 | . 2 . . Parts Field Recycled . | . . . . Retrieved Matter . | . . . . Parts Self-Destructed 7 | . . . 7 Prevented . | . . . . Kills | -11 -10 -10 -10 ------- Run | Yrd Mat Min Sub Combat Hostiles Destroyed 19 | . 11 1 7 Guns 2 | . 1 1 . Cannons 9 | . 7 . 2 AOE 8 | . 3 . 5 Classes Destroyed 9 | 2 6 . 1 Worker 1 | . 1 . . Builder 1 | . 1 . . Tunneler 1 | 1 . . . Hauler 2 | . 2 . . Recycler 4 | 1 2 1 . Watcher 2 | . 2 . . Swarmer 7 | . 3 . 4 Grunt 9 | . 8 1 . Subdweller 3 | . . . 3 Best Kill Streak 4 | 1 3 2 4 Combat Bots Only 4 | . 2 1 4 Max Kills in Single Turn 2 | 1 2 1 2 Gunslinging . | . . . . Exploded 2 | . 2 . 2 Melee . | . . . . Uniques/NPCs Destroyed . | . . . . Combat | -11 -10 -10 -10 -------- Run | Yrd Mat Min Sub Hostile Shots Fired 106 | . 75 7 24 Missed 39 | . 26 2 11 Hits 67 | . 49 5 13 Projectile 67 | . 49 5 13 Damage Taken 978 | . 566 57 355 Core 262 | . 187 . 75 Absorbed by Shields . | . . . . Core Remaining (%) 100 | 100 . . . Volleys Fired 123 | 9 66 27 21 Largest 2 | 2 2 2 2 Hottest 136 | 40 136 53 60 Shots Fired 190 | 18 114 34 24 Gun 52 | 18 27 7 . Cannon 118 | . 84 27 7 Launcher 20 | . 3 . 17 Special . | . . . . Kinetic 103 | 18 44 34 7 Thermal 67 | . 67 . . Explosive 20 | . 3 . 17 Electromagnetic . | . . . . Robot Hit Streak 7 | 4 7 6 5 Robot Miss Streak 6 | 2 6 2 1 Penetration Max . | . . . . Secondary Targets . | . . . . Shots Hit Robots 92 | 10 64 11 7 Core Hits 43 | 3 21 4 15 Critical Kills . | . . . . Critical Parts Destroyed . | . . . . Critical Strikes 1 | . 1 . . Blast 1 | . 1 . . Melee Attacks . | . . . . Impact . | . . . . Slashing . | . . . . Piercing . | . . . . Sneak Attacks . | . . . . Combat Hostiles . | . . . . Follow-up Attacks . | . . . . Damage Inflicted 2529 | 100 1438 189 802 Guns 436 | 100 232 104 . Cannons 1138 | . 999 85 54 Explosions 955 | . 207 . 748 Melee . | . . . . Ramming . | . . . . Kinetic 774 | 100 431 189 54 Thermal 800 | . 800 . . Explosive 955 | . 207 . 748 Electromagnetic . | . . . . Impact . | . . . . Slashing . | . . . . Piercing . | . . . . Highest Corruption . | . . . . Average Corruption . | . . . . Corruption Purged . | . . . . Corruption Blocked . | . . . . Overload Shots . | . . . . Overflow Damage 20 | . 10 . 10 Projectiles 10 | . 10 . . Explosions 10 | . . . 10 Melee . | . . . . Knockbacks 2 | . 1 1 . Impact . | . . . . Kinetic 2 | . 1 1 . Secondary . | . . . . Self-Inflicted Damage 86 | . . . 86 Shots 7 | . . . 7 Rammed . | . . . . Targets Rammed . | . . . . Kicked . | . . . . Crushed . | . . . . Highest Temperature 456 | . 456 21 . Average Temperature 133 | . 140 13 . Received Heat Transfer 372 | . 282 30 60 Effects 3 | . 3 . . Shutdowns 2 | . 2 . . Damage (major) 1 | . 1 . . Siege Activations . | . . . . Martial Activations . | . . . . Shielding Activations . | . . . . Robots Disrupted . | . . . . Combat Hostiles . | . . . . Robots Corrupted . | . . . . Combat Hostiles . | . . . . Parts Fried . | . . . . Impact Corruptions . | . . . . Robots Melted . | . . . . Combat Hostiles . | . . . . Parts Melted 1 | . 1 . . Heat Transferred 1443 | . 1443 . . Parts Sabotaged . | . . . . Parts Stolen . | . . . . Parts Stripped . | . . . . Power Chain Reactions . | . . . . Alert | -11 -10 -10 -10 ------- Run | Yrd Mat Min Sub Maximum Alert Level . | . . . . Low Security (%) 100 | 100 100 100 . Level 1 . | . . . . Level 2 . | . . . . Level 3 . | . . . . Level 4 . | . . . . Level 5 . | . . . . High Security . | . . . . Max Security . | . . . . Peak Influence 184 | 5 184 20 . Initial 18 | . . 18 . Average 41 | . 54 3 . Influence Increases 692 | 10 472 25 185 Destroy 0b10 Robot/C 320 | . 220 20 80 Destroy 0b10 Robot/NC 55 | 10 40 5 . Destroy Leader 48 | . 48 . . Successful Hack 4 | . 4 . . Disable Machine 45 | . 45 . . Destroy Structure 25 | . 25 . . Lose Combat Pursuer 195 | . 90 . 105 Influence Decreases 565 | 10 425 72 58 Entered New Map 29 | . . 29 . Time Decay 506 | 10 405 43 48 Lost Part 30 | . 20 . 10 Squads Dispatched 2 | . 2 . . Investigation 1 | . 1 . . Extermination . | . . . . Reinforcement 1 | . 1 . . Assault . | . . . . Garrison . | . . . . Intercept . | . . . . Searches Triggered . | . . . . Construction Impeded . | . . . . Haulers Reinforced . | . . . . Active Scanning Responses . | . . . . Cargo Convoy Interrupts . | . . . . Stealth | -11 -10 -10 -10 --------- Run | Yrd Mat Min Sub Distress Signals 1 | . 1 . . Communications Jammed . | . . . . Distress Signals . | . . . . Times Spotted 37 | . 23 1 13 Peak Tracking Total 6 | . 3 1 6 Tactical Retreats 7 | . 5 . 2 Traps | -11 -10 -10 -10 ------- Run | Yrd Mat Min Sub Traps Triggered 2 | . 1 . 1 Indirectly . | . . . . Trap Hack Attempts . | . . . . Triggered . | . . . . Disarmed . | . . . . Reprogrammed . | . . . . Reused . | . . . . Traps Extracted . | . . . . Installed . | . . . . Triggered . | . . . . Most Traps Carried 1 | . . 1 . Machines | -11 -10 -10 -10 ---------- Run | Yrd Mat Min Sub Machines Disabled 6 | . 3 . 3 Max in Single Turn 2 | . 1 . 2 Machines Repaired . | . . . . Machines Dismantled . | . . . . Machines Sabotaged . | . . . . Overloaded Fab Kills . | . . . . Hacking | -11 -10 -10 -10 --------- Run | Yrd Mat Min Sub Machines Accessed 7 | . 5 . 2 Terminals 3 | . 3 . . Fabricators . | . . . . Repair Stations . | . . . . Recycling Units 2 | . 2 . . Scanalyzers . | . . . . Garrison Access . | . . . . Total Hacks 14 | . 11 . 3 Successful 8 | . 5 . 3 Failed 6 | . 6 . . Catastrophic 2 | . 2 . . Database Lockouts . | . . . . Manual . | . . . . Terminals 6 | . 6 . . Fabricators . | . . . . Repair Stations . | . . . . Recycling Units 5 | . 5 . . Scanalyzers . | . . . . Garrison Access . | . . . . Terminal Hacks 5 | . 2 . 3 Record 1 | . . . 1 Open Door 1 | . . . 1 Emergency Access Points 1 | . 1 . . Locate Traps 1 | . 1 . . Release Object 1 | . . . 1 Fabricator Hacks . | . . . . Repair Station Hacks . | . . . . Recycling Unit Hacks 3 | . 3 . . Report Inventory 1 | . 1 . . Retrieve Components 2 | . 2 . . Scanalyzer . | . . . . Garrison Access Hacks . | . . . . Unauthorized Hacks . | . . . . Terminals . | . . . . Fabricators . | . . . . Repair Stations . | . . . . Recycling Units . | . . . . Scanalyzers . | . . . . Garrison Access . | . . . . Data Cores Recovered . | . . . . Used . | . . . . Hacking Detections 5 | . 5 . . Full Trace Events 1 | . 1 . . Feedback Events . | . . . . Feedback Blocked . | . . . . Robot Schematics Acquired . | . . . . Robots Built . | . . . . Authchips . | . . . . Time . | . . . . Total Robot Build Rating . | . . . . Part Schematics Acquired . | . . . . Parts Built . | . . . . Authchips . | . . . . Time . | . . . . Total Part Build Rating . | . . . . Parts Repaired . | . . . . Time . | . . . . Parts Recycled . | . . . . Recycled Matter . | . . . . Retrieved Matter . | . . . . Retrieved Components 2 | . 2 . . Parts Scanalyzed . | . . . . Part Schematics Acquired . | . . . . Parts Damaged . | . . . . Bothacking | -11 -10 -10 -10 ------------ Run | Yrd Mat Min Sub Used RIF Installer . | . . . . Robots Hacked . | . . . . Non-combat . | . . . . Combat . | . . . . Robot Hacks Applied . | . . . . Relay Couplers Released . | . . . . Fabnet Peak Effective % . | . . . . Robots Rewired . | . . . . Allies Hacked . | . . . . Hacks Repelled . | . . . . Allies | -11 -10 -10 -10 -------- Run | Yrd Mat Min Sub Total Allies . | . . . . Largest Group . | . . . . Highest-Rated Group . | . . . . Highest-Rated Ally . | . . . . Total Orders . | . . . . Ally Attacks . | . . . . Total Damage . | . . . . Kills . | . . . . Allies Corrupted . | . . . . Allies Melted . | . . . . Intel | -11 -10 -10 -10 ------- Run | Yrd Mat Min Sub Active Infowar (turns) 2146 | 19 1078 311 738 Sensors 1630 | . 581 311 738 Seismic 516 | 19 497 . . Robot Analysis Total . | . . . . Derelict Logs Recovered 1 | . . 1 . Drone Launches . | . . . . Drone Recoveries . | . . . . Exploration | -11 -10 -10 -10 ------------- Run | Yrd Mat Min Sub Turns Passed 2504 | 140 1315 311 738 Spaces Moved 1232 | 80 669 123 360 Core 2 | 2 . . . Treads . | . . . . Legs 1221 | 69 669 123 360 Wheels 9 | 9 . . . Hover . | . . . . Flight . | . . . . Fastest Speed 50 | 50 120 190 190 Average Speed 166 | 113 155 190 190 Slowest Speed 190 | 120 190 190 190 Overloaded Moves . | . . . . Propulsion Burnouts . | . . . . Robots Hopped . | . . . . Potential Cave-ins . | . . . . Cave-ins Triggered . | . . . . Exploration Rate (%) 38 | 5 85 38 24 Regions Visited 3 Branch Regions 2 Pre-discovered Areas 1 | . . 1 . Known Exits Taken . | . . . . Unknown Exits Taken 3 | 1 1 1 . Scrap Searched . | . . . . Spaces Dug 25 | . . . 25 Terrain Destroyed 135 | . 22 . 113 Melee . | . . . . Projectile . | . . . . AOE 135 | . 22 . 113 Terrain Rammed . | . . . . Walls Destroyed . | . . . . Machines Disabled . | . . . . Actions | -11 -10 -10 -10 --------- Run | Yrd Mat Min Sub Total 1496 | 111 827 168 390 Wait 53 | . 32 16 5 Move 1229 | 79 668 122 360 Hop . | . . . . Pick Up 34 | 11 21 1 1 Fast Attach 9 | 5 4 . . Attach 7 | 4 2 . 1 Detach 3 | 2 1 . . Swap 17 | . 16 . 1 Drop 20 | 1 17 2 . Fire 123 | 9 66 27 21 Melee . | . . . . Ram . | . . . . Kick . | . . . . Crush . | . . . . Escape Stasis . | . . . . Rewire . | . . . . Trap . | . . . . Miscellaneous 1 | . . . 1 Route ------- -11/Scrapyard -10/Materials (discovered 3 exits: [*Mat x2] / [*Min]) -10/Mines -10/Subcaves (discovered 2 exits: [*Mat] / [*Rec]) History --------- Turn | Location | Event 13 | -11/Scrapyard | Discovered new exit (range 16) 141 | -11/Scrapyard | Entered Materials 320 | -10/Materials | Build established: Mutant 488 | -10/Materials | Core integrity fell below 50% 630 | -10/Materials | Discovered new exit (range 5) 994 | -10/Materials | Discovered new exit (range 8) 1096 | -10/Materials | Discovered new exit (range 8) 1456 | -10/Materials | Entered Mines 1500 | -10/Mines | Excavation squad dispatched 1500 | -10/Mines | A large section of the Mines collapsed 1519 | -10/Mines | Met a Derelict bent on vengeance 1596 | -10/Mines | Learned location of Mines (-8) 1666 | -10/Mines | Found a hidden stash of uninstalled traps 1718 | -10/Mines | Discovered new exit (range 8) 1767 | -10/Mines | Entered Subcaves 1909 | -10/Subcaves | Core integrity fell below 20% 2101 | -10/Subcaves | Discovered new exit (range 9) 2204 | -10/Subcaves | Released subatomizers from SUBCON Basin 2366 | -10/Subcaves | Discovered new exit (range 9) 2490 | -10/Subcaves | Ambushed by Subdweller buried in earth 2498 | -10/Subcaves | Ambushed by Subdweller buried in earth 2505 | -10/Subcaves | Destroyed by 2P-IS3(R) with Subdweller Machine Gun Last Messages --------------- 02258_ Acquired 46 matter. 02271_ Acquired 10 matter. 02288_ Acquired 7 matter. 02305_ Acquired 8 matter. 02366_ EXIT=FOUND 02370_ S-10 Pest destroyed. 02372_ Machine disabled. 02372_ S-10 Pest destroyed. 02374_ Subatomizers dissect the Lgt. Assault Rifle. 02484_ The unstable cave ceiling collapses. 02491_ K4-JO4(R): "ARGHSUB!" 02497_ JJ-PQZ(R): "ARGHSUB!" 02498_ Destroyed Sub. Optics. 02498_ K4-JO4(R) destroyed. 02499_ 2P-IS3(R): "ARGHSUB!" 02502_ Lgt. Ion Engine destroyed. 02502_ Machine disabled. 02503_ The unstable cave ceiling collapses. 02503_ Autobeam Turret destroyed. 02504_ Subatomizers dissect the Sub. Laser. Map ----- +----------------------------------------------------+ | ?????????????????????????????# ?????# # #? | | ?????????????????????????????## ??????# # #? | | ?????????????????????????????? ^ ???#### ## # | | ??????????????????????????????# ???# #?? | | ?????????????????????????????## #??## ### | | ?????????????????????????????# #?## | | ?????????????????????????????## ### | | ?????????????????????????????# ## | | ??????????????????????????##### = | | ???????????????????????#### ## | | ???????????????????????# #? # | | ???????????????????????# #?? # | | ??????????????????????## #?? ] | | ?????????????????????## #### #??? | | ??????????????????#### ##?# ## ##??? | | ??????????????????# #### #####????? | | ??????????????????# #?# #??????????? | | ??????????????????# ### #???????????? | | ??????????????????## #???????????? | | ???????????????????## ### #????????? | | ????????????????????# ## #? #????????? | | ????????????????????# #### #? # #????????? | | ????????????????????# #??## #? #???????? | | ????????????????????## #?### #? #???????? | | ?????????????????????# ### ##### < #???????? | | ?????????????????????## #@ R #??" "??????? | | ??????????????????????## R[ " "#?????? | | ???????????????????????### % t "#?????? | | ????????????????????????? & % %#?????? | | ????????????????????????? # %#?????? | | ????????????????????????? "#?????? | | ????????????????????????? ## ?#???????? | | ????????????????????????##### ###??# ?????????? | | ????????????????????????????? ?????? ??????????? | | ????????????????????????????? #?????? ??????????? | | ??????????????????????????????##?????????????????? | | ?????????????????????????????????????????????????? | | ?????????????????????????????????????????????????? | | ?????????????????????????????????????????????????? | | ?????????????????????????????????????????????????? | | ?????????????????????????????????????????????????? | | ?????????????????????????????????????????????????? | | ?????????????????????????????????????????????????? | | ?????????????????????????????????????????????????? | | ?????????????????????????????????????????????????? | | ?????????????????????????????????????????????????? | | ?????????????????????????????????????????????????? | | ?????????????????????????????????????????????????? | | ?????????????????????????????????????????????????? | | ?????????????????????????????????????????????????? | +----------------------------------------------------+ Best States ------------- Heat Dissipation 35 Energy Generation 14 Energy Capacity 160 Matter Stores 300 Matter Capacity 300 Sight Range 16 Robot Scan Range 14 Terrain Scan Density 10 Evasion (%) 55 Item Schematics ----------------- None Robot Schematics ------------------ None Fabricated ------------ Nothing Repaired ---------- Nothing Alien Tech Used ----------------- None Achievements -------------- None Challenges ------------ None Game ------ Seed PrecisionCouplerExtrapolator Manual? 0 Play Time 00:30:17 Cumulative 59.7 hours Start 2025.10.08 @ 21:46:53 End 2025.10.09 @ 16:47:04 Sessions 5 Manual Loads 0 Difficulty Rogue Special Mode None Game No. 49 Rogue 37 Adventurer 12 Explorer 0 Win Type - Total 1 Types 1/0/0/0/0/0/0/0/0/0 Lore% 21 Gallery% 28 Achievement% 30 Wizard Run 0 Options --------- Layout 0 ASCII 0 Keyboard 0 Movement Numpad Keybinds 0 Fullscreen 2 Font 24/Smallcaps Map View 76x50 Zoom Use 1% Tactical HUD 1 Map Filters NONE Filters NONE Steam 1 RUN: 23c56165-b923-4cc6-b3b4-b406eddd0784